fUSD/lending_fUSD_20251201
["ID","MTS","AMOUNT","RATE_DAILY","PERIOD"]
[395226092,1764553848081,-276.0,0.00016124,2]
[395226093,1764553848091,-150.0,0.00016125,2]
[395226094,1764553848100,-150.0,0.00016126,2]
[395226095,1764553848111,-1000.0,0.00016126,2]
[395226096,1764553848120,-150.0,0.00016128,2]
[395226097,1764553848129,-206.00527742,0.00016128,2]
[395226098,1764553848139,-293.52544515,0.00016128,2]
[395226099,1764553848148,-150.0,0.00016137,2]
[395226100,1764553848157,-150.0,0.00016137,2]
[395226101,1764553848166,-150.0,0.00016137,2]
[395226102,1764553848175,-150.0,0.00016137,2]
[395226103,1764553848184,-150.0,0.00016137,2]
[395226104,1764553848194,-150.0,0.00016137,2]
[395226105,1764553848203,-150.0,0.00016137,2]
[395226106,1764553848212,-151.0,0.00016144,2]
[395226107,1764553848221,-206.00527742,0.00016146,2]
[395226108,1764553848231,-293.52544515,0.00016146,2]
[395226109,1764553848240,-150.0,0.00016146,2]
[395226110,1764553848249,-151.0,0.00016147,2]
[395226111,1764553848258,-152.505957,0.00016147,2]
[395226112,1764553848267,-151.0,0.00016147,2]
[395226113,1764553848276,-151.0,0.00016147,2]
[395226114,1764553848285,-260.16436414,0.00016147,2]
[395226115,1764553848294,-151.000002,0.00016147,2]
[395226116,1764553848303,-909.432347,0.00016147,2]
[395226117,1764553848313,-909.432347,0.00016147,2]
[395226118,1764553848322,-909.432347,0.00016147,2]
[395226119,1764553848331,-909.432347,0.00016147,2]
[395226120,1764553848341,-151.553399,0.00016147,2]
[395226121,1764553848350,-2395.33149,0.00016147,2]
[395226122,1764553848360,-2395.33149,0.00016147,2]
[395226123,1764553848369,-2395.33149,0.00016147,2]
[395226124,1764553848379,-2395.33149,0.00016147,2]
[395226125,1764553848390,-157.429867,0.00016147,2]
[395226126,1764553848403,-152.370624,0.00016147,2]
[395226127,1764553848414,-151.0,0.00016147,2]
[395226128,1764553848423,-2807.656731,0.00016147,2]
[395226129,1764553848435,-2807.656731,0.00016147,2]
[395226130,1764553848448,-168.391392,0.00016147,2]
[395226131,1764553848458,-2807.656731,0.00016147,2]
[395226132,1764553848468,-2807.656731,0.00016147,2]
[395226133,1764553848480,-151.0,0.00016147,2]
[395226134,1764553848490,-151.436372,0.00016147,2]
[395226135,1764553848499,-151.0,0.00016147,2]
[395226136,1764553848509,-151.0,0.00016147,2]
[395226137,1764553848520,-151.0,0.00016147,2]
[395226138,1764553848529,-290.994645,0.00016147,2]
[395226139,1764553848538,-578.20924308,0.00016147,2]
[395226140,1764553848548,-151.0,0.00016147,2]
[395226141,1764553848557,-500.0,0.00016147,2]
[395226142,1764553848566,-151.0,0.00016147,2]
[395226143,1764553848575,-500.0,0.00016147,2]
[395226144,1764553848584,-151.0,0.00016147,2]
[395226145,1764553848593,-500.0,0.00016147,2]
[395226146,1764553848602,-151.0,0.00016147,2]
[395226147,1764553848612,-500.0,0.00016147,2]
[395226148,1764553848621,-151.0,0.00016147,2]
[395226149,1764553848630,-500.0,0.00016147,2]
[395226150,1764553848640,-151.0,0.00016147,2]
[395226151,1764553848649,-500.0,0.00016147,2]
[395226152,1764553848658,-151.0,0.00016147,2]
[395226153,1764553848667,-151.0,0.00016147,2]
[395226154,1764553848676,-500.0,0.00016147,2]
[395226155,1764553848686,-500.0,0.00016147,2]
[395226156,1764553848695,-151.0,0.00016147,2]
[395226157,1764553848705,-151.0,0.00016147,2]
[395226158,1764553848714,-500.0,0.00016147,2]
[395226159,1764553848723,-500.0,0.00016147,2]
[395226160,1764553848734,-151.0,0.00016147,2]
[395226161,1764553848743,-151.0,0.00016147,2]
[395226162,1764553848752,-500.0,0.00016147,2]
[395226163,1764553848762,-500.0,0.00016147,2]
[395226164,1764553848771,-151.0,0.00016147,2]
[395226165,1764553848780,-500.0,0.00016147,2]
[395226166,1764553848789,-500.0,0.00016147,2]
[395226167,1764553848798,-500.0,0.00016147,2]
[395226168,1764553848807,-151.0,0.00016147,2]
[395226169,1764553848816,-500.0,0.00016147,2]
[395226170,1764553848826,-151.0,0.00016147,2]
[395226171,1764553848834,-500.0,0.00016147,2]
[395226172,1764553848843,-500.0,0.00016147,2]
[395226173,1764553848854,-500.0,0.00016147,2]
[395226174,1764553848864,-151.0,0.00016147,2]
[395226175,1764553848874,-500.0,0.00016147,2]
[395226176,1764553848886,-194.72792766,0.00016147,2]
[395226177,1764553848895,-500.0,0.00016147,2]
[395226178,1764553848904,-500.0,0.00016147,2]
[395226179,1764553848913,-322.6107,0.00016147,2]
[395226180,1764553848923,-500.0,0.00016147,2]
[395226181,1764553848933,-533.88981491,0.00016147,2]
[395226182,1764553848942,-500.0,0.00016147,2]
[395226183,1764553848951,-500.0,0.00016147,2]
[395226184,1764553848962,-500.0,0.00016147,2]
[395226185,1764553848971,-250.0,0.00016147,2]
[395226186,1764553848981,-250.0,0.00016147,2]
[395226187,1764553848991,-160.0,0.00016147,2]
[395226188,1764553849000,-250.0,0.00016147,2]
[395226189,1764553849009,-250.0,0.00016147,2]
[395226190,1764553849018,-250.0,0.00016147,2]
[395226191,1764553849027,-250.0,0.00016147,2]
[395226192,1764553849037,-250.0,0.00016147,2]
[395226193,1764553849047,-250.0,0.00016147,2]
[395226194,1764553849056,-151.0,0.00016147,2]
[395226195,1764553849066,-250.0,0.00016147,2]
[395226196,1764553849075,-300.0,0.00016147,2]
[395226197,1764553849084,-194.72792766,0.00016147,2]
[395226198,1764553849094,-151.0,0.00016147,2]
[395226199,1764553849103,-250.0,0.00016147,2]
[395226200,1764553849112,-151.0,0.00016147,2]
[395226201,1764553849122,-151.0,0.00016147,2]
[395226202,1764553849131,-250.0,0.00016147,2]
[395226203,1764553849140,-8000.0,0.00016147,2]
[395226204,1764553849149,-151.0,0.00016147,2]
[395226205,1764553849159,-8000.0,0.00016147,2]
[395226206,1764553849168,-151.0,0.00016147,2]
[395226207,1764553849178,-8000.0,0.00016147,2]
[395226208,1764553849187,-250.0,0.00016147,2]
[395226209,1764553849196,-151.0,0.00016147,2]
[395226210,1764553849207,-250.0,0.00016147,2]
[395226211,1764553849216,-8000.0,0.00016147,2]
[395226212,1764553849225,-3000.0,0.00016147,2]
[395226213,1764553849234,-151.0,0.00016147,2]
[395226214,1764553849244,-500.0,0.00016147,2]
[395226215,1764553849254,-8000.0,0.00016147,2]
[395226216,1764553849263,-151.0,0.00016147,2]
[395226217,1764553849272,-500.0,0.00016147,2]
[395226218,1764553849281,-8000.0,0.00016147,2]
[395226219,1764553849290,-151.0,0.00016147,2]
[395226220,1764553849299,-500.0,0.00016147,2]
[395226221,1764553849307,-8000.0,0.00016147,2]
[395226222,1764553849316,-250.39585961,0.00016147,2]
[395226223,1764553849326,-8000.0,0.00016147,2]
[395226224,1764553849334,-151.0,0.00016147,2]
[395226225,1764553849343,-8000.0,0.00016147,2]
[395226226,1764553849352,-151.0,0.00016147,2]
[395226227,1764553849361,-8000.0,0.00016147,2]
[395226228,1764553849371,-151.0,0.00016147,2]
[395226229,1764553849380,-8000.0,0.00016147,2]
[395226230,1764553849390,-151.0,0.00016147,2]
[395226231,1764553849399,-8000.0,0.00016147,2]
[395226232,1764553849409,-6003.54480208,0.00016147,2]
[395226233,1764553849419,-1000.0,0.00016147,2]
[395226234,1764553849432,-1000.0,0.00016147,2]
[395226235,1764553849442,-1000.0,0.00016147,2]
[395226236,1764553849452,-1000.0,0.00016147,2]
[395226237,1764553849462,-1000.0,0.00016147,2]
[395226238,1764553849472,-1000.0,0.00016147,2]
[395226239,1764553849481,-1000.0,0.00016147,2]
[395226240,1764553849490,-250.0,0.00016147,2]
[395226241,1764553849499,-250.0,0.00016147,2]
[395226242,1764553849509,-1000.0,0.00016147,2]
[395226243,1764553849518,-250.0,0.00016147,2]
[395226244,1764553849527,-1000.0,0.00016147,2]
[395226245,1764553849536,-250.0,0.00016147,2]
[395226246,1764553849545,-1000.0,0.00016147,2]
[395226247,1764553849554,-936.93286639,0.00016147,2]
[395226248,1764553849564,-250.0,0.00016147,2]
[395226249,1764553849573,-1000.0,0.00016147,2]
[395226250,1764553849582,-250.0,0.00016147,2]
[395226251,1764553849591,-1000.0,0.00016147,2]
[395226252,1764553849601,-250.0,0.00016147,2]
[395226253,1764553849610,-1000.0,0.00016147,2]
[395226254,1764553849619,-250.0,0.00016147,2]
[395226255,1764553849628,-250.0,0.00016147,2]
[395226256,1764553849637,-250.0,0.00016147,2]
[395226257,1764553849646,-250.0,0.00016147,2]
[395226258,1764553849656,-250.0,0.00016147,2]
[395226259,1764553849665,-250.0,0.00016147,2]
[395226260,1764553849674,-250.0,0.00016147,2]
[395226261,1764553849683,-250.0,0.00016147,2]
[395226262,1764553849692,-250.0,0.00016147,2]
[395226263,1764553849702,-250.0,0.00016147,2]
[395226264,1764553849711,-250.0,0.00016147,2]
[395226265,1764553849719,-250.0,0.00016147,2]
[395226266,1764553849729,-250.0,0.00016147,2]
[395226267,1764553849739,-257.91778498,0.00016147,2]
[395226268,1764553849748,-250.0,0.00016147,2]
[395226269,1764553849757,-620.0,0.00016147,2]
[395226270,1764553849766,-250.0,0.00016147,2]
[395226271,1764553849776,-250.0,0.00016147,2]
[395226272,1764553849790,-250.0,0.00016147,2]
[395226273,1764553849800,-250.0,0.00016147,2]
[395226274,1764553849809,-250.0,0.00016147,2]
[395226275,1764553849819,-1000.0,0.00016147,2]
[395226276,1764553849828,-1000.0,0.00016147,2]
[395226277,1764553849837,-1000.0,0.00016147,2]
[395226278,1764553849846,-1000.0,0.00016147,2]
[395226279,1764553849855,-1000.0,0.00016147,2]
[395226280,1764553849865,-1000.0,0.00016147,2]
[395226281,1764553849875,-1000.0,0.00016147,2]
[395226282,1764553849883,-1000.0,0.00016147,2]
[395226283,1764553849893,-1000.0,0.00016147,2]
[395226284,1764553849903,-1000.0,0.00016147,2]
[395226285,1764553849912,-1000.0,0.00016147,2]
[395226286,1764553849922,-1000.0,0.00016147,2]
[395226287,1764553849931,-1000.0,0.00016147,2]
[395226288,1764553849942,-500.0,0.00016147,2]
[395226289,1764553849953,-500.0,0.00016147,2]
[395226290,1764553849962,-500.0,0.00016147,2]
[395226291,1764553849972,-500.0,0.00016147,2]
[395226292,1764553849981,-500.0,0.00016147,2]
[395226293,1764553849992,-500.0,0.00016147,2]
[395226294,1764553850002,-500.0,0.00016147,2]
[395226295,1764553850011,-500.0,0.00016147,2]
[395226296,1764553850024,-500.0,0.00016147,2]
[395226297,1764553850038,-500.0,0.00016147,2]
[395226298,1764553850047,-500.0,0.00016147,2]
[395226299,1764553850056,-500.0,0.00016147,2]
[395226300,1764553850068,-500.0,0.00016147,2]
[395226301,1764553850078,-500.0,0.00016148,2]
[395226302,1764553850088,-500.0,0.00016148,2]
[395226303,1764553850097,-500.0,0.00016148,2]
[395226304,1764553850107,-500.0,0.00016148,2]
[395226305,1764553850117,-500.0,0.00016148,2]
[395226306,1764553850127,-500.0,0.00016148,2]
[395226307,1764553850221,-500.0,0.00016148,2]
[395226308,1764553850268,-500.0,0.00016148,2]
[395226309,1764553850277,-500.0,0.00016148,2]
[395226310,1764553850287,-150.0,0.00016148,2]
[395226311,1764553850296,-150.0,0.00016149,2]
[395226312,1764553850306,-4205.89366882,0.00016149,2]
[395226313,1764553850315,-2229.05280589,0.00016149,2]
[395226314,1764553850325,-151.848017,0.00016149,2]
[395226315,1764553850335,-151.0,0.00016149,2]
[395226316,1764553850344,-151.636621,0.00016149,2]
[395226317,1764553850354,-151.0,0.00016149,2]
[395226318,1764553850364,-151.0,0.00016149,2]
[395226319,1764553850373,-151.0,0.00016149,2]
[395226320,1764553850383,-151.0,0.00016149,2]
[395226321,1764553850393,-161.936816,0.00016149,2]
[395226322,1764553850403,-424.116557,0.00016149,2]
[395226323,1764553850413,-424.116557,0.00016149,2]
[395226324,1764553850425,-424.116557,0.00016149,2]
[395226325,1764553850437,-424.116557,0.00016149,2]
[395226326,1764553850447,-205.06898405,0.00016149,2]
[395226327,1764553850458,-226.43577512,0.0001615,2]
[395226328,1764553850468,-2092.314224,0.0001615,2]
[395226329,1764553850478,-150.0,0.00016157,2]
[395226330,1764553850489,-150.0,0.0001616,2]
[395226331,1764553850498,-206.00527742,0.00016163,2]
[395226332,1764553850509,-293.52544515,0.00016163,2]
[395226333,1764553850518,-150.0,0.00016163,2]
[395226334,1764553850528,-151.0,0.00016165,2]
[395226335,1764553850537,-150.0,0.00016171,2]
[395226336,1764553850546,-150.0,0.00016173,2]
[395226337,1764553850556,-150.0,0.00016177,2]
[395226338,1764553850565,-150.0,0.00016177,2]
[395226339,1764553850576,-206.00527742,0.0001618,2]
[395226340,1764553850586,-293.52544515,0.0001618,2]
[395226341,1764553850595,-150.0,0.00016181,2]
[395226342,1764553850604,-473.6,0.00016186,2]
[395226343,1764553850614,-150.0,0.00016194,2]
[395226344,1764553850623,-150.0,0.00016197,2]
[395226345,1764553850632,-206.00527742,0.00016197,2]
[395226346,1764553850642,-293.52544515,0.00016197,2]
[395226347,1764553850651,-150.0,0.00016198,2]
[395226348,1764553850661,-150.0,0.00016198,2]
[395226349,1764553850671,-150.0,0.00016198,2]
[395226350,1764553850680,-684.0,0.00016201,2]
[395226351,1764553850689,-150.0,0.00016206,2]
[395226352,1764553850699,-206.00527742,0.00016214,2]
[395226353,1764553850708,-293.52544515,0.00016214,2]
[395226354,1764553850718,-150.0,0.00016216,2]
[395226355,1764553850727,-150.0,0.00016216,2]
[395226356,1764553850738,-484.4802032,0.00016218,2]
[395226357,1764553850747,-150.0,0.00016218,2]
[395226358,1764553850756,-150.0,0.00016218,2]
[395226359,1764553850766,-150.0,0.00016221,2]
[395226360,1764553850775,-150.0,0.00016222,2]
[395226361,1764553850786,-1438.04,0.00016223,2]
[395226362,1764553850795,-206.00527742,0.00016231,2]
[395226363,1764553850804,-293.52544515,0.00016231,2]
[395226364,1764553850814,-150.0,0.00016233,2]
[395226365,1764553850823,-150.0,0.00016238,2]
[395226366,1764553850833,-150.0,0.00016239,2]
[395226367,1764553850843,-500.0,0.00016243,2]
[395226368,1764553850854,-150.0,0.00016245,2]
[395226369,1764553850865,-206.00527742,0.00016249,2]
[395226370,1764553850874,-293.52544515,0.00016249,2]
[395226371,1764553850884,-150.0,0.00016251,2]
[395226372,1764553850893,-150.0,0.00016252,2]
[395226373,1764553850904,-207.4,0.00016257,2]
[395226374,1764553850914,-500.0,0.00016258,2]
[395226375,1764553850923,-200.0,0.00016258,2]
[395226376,1764553850932,-200.0,0.00016258,2]
[395226377,1764553850942,-150.0,0.00016258,2]
[395226378,1764553850952,-150.0,0.00016258,2]
[395226379,1764553850961,-150.0,0.00016258,2]
[395226380,1764553850970,-150.0,0.00016258,2]
[395226381,1764553850980,-150.0,0.00016262,2]
[395226382,1764553850989,-206.00527742,0.00016266,2]
[395226383,1764553850999,-293.52544515,0.00016266,2]
[395226384,1764553851008,-150.0,0.00016268,2]
[395226385,1764553851018,-150.0,0.00016269,2]
[395226386,1764553851027,-150.0,0.00016279,2]
[395226387,1764553851037,-150.0,0.00016279,2]
[395226388,1764553851047,-206.00527742,0.00016283,2]
[395226389,1764553851057,-293.52544515,0.00016283,2]
[395226390,1764553851067,-150.0,0.00016284,2]
[395226391,1764553851077,-150.0,0.00016286,2]
[395226392,1764553851087,-150.0,0.00016292,2]
[395226393,1764553851096,-150.0,0.00016298,2]
[395226394,1764553851105,-150.0,0.00016299,2]
[395226395,1764553851115,-150.0,0.00016299,2]
[395226396,1764553851125,-206.00527742,0.000163,2]
[395226397,1764553851135,-293.52544515,0.000163,2]
[395226398,1764553851145,-150.0,0.00016303,2]
[395226399,1764553851154,-150.0,0.00016307,2]
[395226400,1764553851163,-150.0,0.00016307,2]
[395226401,1764553851173,-150.0,0.00016307,2]
[395226402,1764553851182,-150.0,0.00016316,2]
[395226403,1764553851192,-206.00527742,0.00016317,2]
[395226404,1764553851201,-293.52544515,0.00016317,2]
[395226405,1764553851211,-150.0,0.00016319,2]
[395226406,1764553851221,-150.0,0.00016319,2]
[395226407,1764553851230,-150.0,0.00016321,2]
[395226408,1764553851239,-150.0,0.00016329,2]
[395226409,1764553851248,-684.0,0.00016332,2]
[395226410,1764553851258,-206.00527742,0.00016334,2]
[395226411,1764553851267,-293.52544515,0.00016334,2]
[395226412,1764553851276,-684.0,0.00016336,2]
[395226413,1764553851285,-150.0,0.00016338,2]
[395226414,1764553851294,-150.0,0.00016339,2]
[395226415,1764553851304,-150.0,0.00016339,2]
[395226416,1764553851313,-150.0,0.0001634,2]
[395226417,1764553851322,-150.0,0.00016344,2]
[395226418,1764553851333,-150.0,0.00016349,2]
[395226419,1764553851342,-206.00527742,0.00016351,2]
[395226420,1764553851352,-293.52544515,0.00016351,2]
[395226421,1764553851361,-150.0,0.00016352,2]
[395226422,1764553851371,-150.0,0.00016356,2]
[395226423,1764553851379,-150.0,0.00016359,2]
[395226424,1764553851388,-150.0,0.00016364,2]
[395226425,1764553851398,-902.0,0.00016366,2]
[395226426,1764553851407,-206.00527742,0.00016369,2]
[395226427,1764553851416,-293.52544515,0.00016369,2]
[395226428,1764553851426,-150.0,0.00016373,2]
[395226429,1764553851437,-150.0,0.00016375,2]
[395226430,1764553851449,-150.0,0.0001638,2]
[395226431,1764553851459,-150.0,0.0001638,2]
[395226432,1764553851472,-150.0,0.0001638,2]
[395226433,1764553851482,-150.0,0.0001638,2]
[395226434,1764553851493,-1006.36873465,0.00016385,2]
[395226435,1764553851504,-206.00527742,0.00016386,2]
[395226436,1764553851514,-293.52544515,0.00016386,2]
[395226437,1764553851524,-150.0,0.00016388,2]
[395226438,1764553851534,-484.4802032,0.00016388,2]
[395226439,1764553851543,-150.0,0.00016389,2]
[395226440,1764553851553,-150.0,0.00016391,2]
[395226441,1764553851562,-150.0,0.00016392,2]
[395226442,1764553851572,-1310.85278819,0.00016397,2]
[395226443,1764553851582,-150.0,0.00016397,2]
[395226444,1764553851592,-150.0,0.000164,2]
[395226445,1764553851602,-206.00527742,0.00016403,2]
[395226446,1764553851612,-293.52544515,0.00016403,2]
[395226447,1764553851623,-150.0,0.00016408,2]
[395226448,1764553851632,-150.0,0.00016412,2]
[395226449,1764553851643,-500.0,0.00016417,2]
[395226450,1764553851653,-206.00527742,0.0001642,2]
[395226451,1764553851664,-150.0,0.0001642,2]
[395226452,1764553851675,-150.0,0.0001642,2]
[395226453,1764553851685,-293.52544515,0.0001642,2]
[395226454,1764553851695,-150.0,0.0001642,2]
[395226455,1764553851704,-150.0,0.0001642,2]
[395226456,1764553851713,-150.0,0.0001642,2]
[395226457,1764553851726,-150.0,0.00016426,2]
[395226458,1764553851736,-150.0,0.00016435,2]
[395226459,1764553851746,-150.0,0.00016436,2]
[395226460,1764553851755,-206.00527742,0.00016437,2]
[395226461,1764553851766,-293.52544515,0.00016437,2]
[395226462,1764553851776,-5454.01,0.00016438,2]
[395226463,1764553851785,-800.0,0.00016438,2]
[395226464,1764553851796,-151.0,0.00016438,2]
[395226465,1764553851805,-600.0,0.00016438,2]
[395226466,1764553851815,-163.98,0.0001644,2]
[395226467,1764553851826,-150.0,0.0001644,2]
[395226468,1764553851837,-150.0,0.0001644,2]
[395226469,1764553851848,-150.0,0.00016443,2]
[395226470,1764553851859,-150.0,0.00016443,2]
[395226471,1764553851870,-11342.96089445,0.00016454,2]
[395226472,1764553851881,-206.00527742,0.00016454,2]
[395226473,1764553851891,-293.52544515,0.00016454,2]
[395226474,1764553851901,-150.0,0.0001646,2]
[395226475,1764553851911,-150.0,0.00016461,2]
[395226476,1764553851921,-150.0,0.00016461,2]
[395226477,1764553851932,-150.0,0.00016461,2]
[395226478,1764553851942,-150.0,0.00016465,2]
[395226479,1764553851951,-206.00527742,0.00016472,2]
[395226480,1764553851961,-293.52544515,0.00016472,2]
[395226481,1764553851970,-150.0,0.00016477,2]
[395226482,1764553851980,-150.0,0.00016478,2]
[395226483,1764553851990,-684.0,0.00016481,2]
[395226484,1764553852000,-150.0,0.00016481,2]
[395226485,1764553852010,-150.0,0.00016481,2]
[395226486,1764553852020,-150.0,0.00016484,2]
[395226487,1764553852031,-150.0,0.00016488,2]
[395226488,1764553852041,-206.00527742,0.00016489,2]
[395226489,1764553852051,-293.52544515,0.00016489,2]
[395226490,1764553852062,-150.0,0.00016496,2]
[395226491,1764553852075,-1438.04,0.00016497,2]
[395226492,1764553852084,-38395.38500068,0.000165,2]
[395226493,1764553852094,-166.0,0.000165,2]
[395226494,1764553852103,-166.0,0.000165,2]
[395226495,1764553852113,-166.0,0.000165,2]
[395226496,1764553852123,-166.0,0.000165,2]
[395226497,1764553852132,-168.47,0.000165,2]
[395226498,1764553852141,-150.0,0.00016501,2]
[395226499,1764553852150,-150.0,0.00016501,2]
[395226500,1764553852160,-150.0,0.00016501,2]
[395226501,1764553852169,-150.0,0.00016501,2]
[395226502,1764553852178,-206.00527742,0.00016506,2]
[395226503,1764553852188,-293.52544515,0.00016506,2]
[395226504,1764553852198,-150.0,0.00016508,2]
[395226505,1764553852207,-150.0,0.00016511,2]
[395226506,1764553852216,-150.0,0.00016513,2]
[395226507,1764553852226,-150.0,0.00016521,2]
[395226508,1764553852235,-206.00527742,0.00016523,2]
[395226509,1764553852244,-293.52544515,0.00016523,2]
[395226510,1764553852255,-150.0,0.00016527,2]
[395226511,1764553852265,-150.0,0.00016531,2]
[395226512,1764553852273,-150.0,0.00016532,2]
[395226513,1764553852283,-150.0,0.00016533,2]
[395226514,1764553852293,-500.0,0.00016535,2]
[395226515,1764553852303,-206.00527742,0.0001654,2]
[395226516,1764553852314,-293.52544515,0.0001654,2]
[395226517,1764553852326,-150.0,0.00016541,2]
[395226518,1764553852336,-150.0,0.00016541,2]
[395226519,1764553852345,-150.0,0.00016549,2]
[395226520,1764553852355,-150.0,0.00016556,2]
[395226521,1764553852364,-150.0,0.00016556,2]
[395226522,1764553852374,-206.00527742,0.00016557,2]
[395226523,1764553852383,-293.52544515,0.00016557,2]
[395226524,1764553852393,-484.4802032,0.00016559,2]
[395226525,1764553852403,-150.0,0.00016562,2]
[395226526,1764553852736,-150.0,0.00016562,2]
[395226527,1764553852750,-150.0,0.00016562,2]
[395226528,1764553852759,-150.0,0.00016562,2]
[395226529,1764553852769,-150.0,0.00016562,2]
[395226530,1764553852778,-2500.0,0.00016564,2]
[395226531,1764553852787,-305.22056595,0.00016564,2]
[395226532,1764553852796,-2500.0,0.00016564,2]
[395226533,1764553852806,-1348.376569,0.00016564,2]
[395226534,1764553852816,-150.0,0.00016566,2]
[395226535,1764553852825,-150.0,0.00016573,2]
[395226536,1764553852834,-206.00527742,0.00016575,2]
[395226537,1764553852843,-293.52544515,0.00016575,2]
[395226538,1764553852854,-150.0,0.00016579,2]
[395226539,1764553852864,-150.0,0.0001658,2]
[395226540,1764553852874,-150.0,0.00016582,2]
[395226541,1764553852883,-150.0,0.00016582,2]
[395226542,1764553852892,-150.0,0.00016584,2]
[395226543,1764553852901,-206.00527742,0.00016592,2]
[395226544,1764553852910,-293.52544515,0.00016592,2]
[395226545,1764553852920,-150.0,0.00016601,2]
[395226546,1764553852930,-150.0,0.00016601,2]
[395226547,1764553852939,-150.0,0.00016602,2]
[395226548,1764553852949,-150.0,0.00016604,2]
[395226549,1764553852958,-902.0,0.00016606,2]
[395226550,1764553852968,-206.00527742,0.00016609,2]
[395226551,1764553852977,-293.52544515,0.00016609,2]
[395226552,1764553852987,-150.0,0.00016619,2]
[395226553,1764553852996,-150.0,0.00016619,2]
[395226554,1764553853006,-150.0,0.00016622,2]
[395226555,1764553853016,-150.0,0.00016622,2]
[395226556,1764553853026,-150.0,0.00016622,2]
[395226557,1764553853037,-150.0,0.00016622,2]
[395226558,1764553853047,-150.0,0.00016624,2]
[395226559,1764553853057,-206.00527742,0.00016626,2]
[395226560,1764553853068,-293.52544515,0.00016626,2]
[395226561,1764553853078,-150.0,0.00016627,2]
[395226562,1764553853088,-150.0,0.00016636,2]
[395226563,1764553853098,-150.0,0.00016643,2]
[395226564,1764553853108,-206.00527742,0.00016643,2]
[395226565,1764553853118,-293.52544515,0.00016643,2]
[395226566,1764553853128,-150.0,0.00016647,2]
[395226567,1764553853139,-150.0,0.00016647,2]
[395226568,1764553853149,-150.0,0.00016647,2]
[395226569,1764553853159,-150.0,0.00016651,2]
[395226570,1764553853169,-150.0,0.00016654,2]
[395226571,1764553853179,-823.0,0.00016658,2]
[395226572,1764553853190,-206.00527742,0.0001666,2]
[395226573,1764553853199,-293.52544515,0.0001666,2]
[395226574,1764553853210,-150.0,0.00016663,2]
[395226575,1764553853220,-150.0,0.00016663,2]
[395226576,1764553853230,-150.0,0.00016665,2]
[395226577,1764553853242,-150.0,0.00016669,2]
[395226578,1764553853251,-250.0,0.0001667,2]
[395226579,1764553853261,-150.0,0.00016671,2]
[395226580,1764553853271,-150.0,0.00016675,2]
[395226581,1764553853280,-206.00527742,0.00016677,2]
[395226582,1764553853294,-293.52544515,0.00016677,2]
[395226583,1764553853305,-150.0,0.00016683,2]
[395226584,1764553853316,-150.0,0.00016683,2]
[395226585,1764553853326,-150.0,0.00016689,2]
[395226586,1764553853338,-150.0,0.00016692,2]
[395226587,1764553853350,-206.00527742,0.00016695,2]
[395226588,1764553853359,-293.52544515,0.00016695,2]
[395226589,1764553853369,-151.0,0.00016695,2]
[395226590,1764553853379,-151.0,0.00016695,2]
[395226591,1764553853389,-201.93286099,0.00016695,2]